[Event "Suryabinayak Municipality Open B 2024"]
[Site "Bhaktapur"]
[Date "2024.12.04"]
[Round "4.4"]
[White "Lama, Milan"]
[Black "Tandukar, Nabin"]
[Result "1-0"]
[ECO "B22"]
[WhiteElo "1997"]
[BlackElo "1900"]
[Annotator "RC"]
[PlyCount "105"]
[EventDate "2024.12.02"]
[EventCountry "NEP"]
[SourceTitle "playchess.com"]
[Source "ChessBase"]
[SourceQuality "1"]
[TimeControl "5400+30"]

1. e4 {[%emt 0:00:10]} c5 {[%emt 0:00:13]} 2. c3 {[%emt 0:00:12]} Nc6 {[%emt 0:01:14]} 3. d4 {[%emt 0:00:09]} cxd4 {[%emt 0:00:15]} 4. cxd4 {[%emt 0:00:05]} e6 {[%emt 0:00:44]} 5. Nc3 {[%emt 0:00:08]} d6 {[%emt 0:00:25]} 6. Nf3 {[%emt 0:00:21]} Nf6 {[%emt 0:00:15]} 7. Bd3 {[%emt 0:00:56]} Be7 {[%emt 0:02:23]} 8. O-O {[%emt 0:01:23]} e5 {[%emt 0:00:10]} 9. d5 {[%emt 0:01:32]} Nb8 {[%emt 0:00:26]} 10. h3 {[%emt 0:00:56]} Nbd7 {[%emt 0:00:27]} 11. Be3 {[%emt 0:00:24]} O-O {[%emt 0:00:29]} 12. a4 {[%emt 0:01:03]} a5 {[%emt 0:04:11]} 13. Nd2 {[%emt 0:04:05]} b6 {[%emt 0:00:25]} 14. Nb3 {[%emt 0:06:45]} Nc5 {[%emt 0:06:24]} 15. Nxc5 {[%emt 0:01:19]} bxc5 {[%emt 0:00:50]} 16. f4 {[%emt 0:02:43]} exf4 {[%emt 0:02:59]} 17. Bxf4 {[%emt 0:05:14]} Nd7 {[%emt 0:11:35]} 18. Bb5 {[%emt 0:05:49]} Ne5 {[%emt 0:01:00]} 19. Bxe5 {[%emt 0:00:24]} dxe5 {[%emt 0:00:17]} 20. Qe2 {[%emt 0:01:25]} Bg5 {[%emt 0:01:19]} 21. Kh2 {[%emt 0:01:24]} Qd6 {[%emt 0:00:44]} 22. Qh5 {[%emt 0:08:54]} Bd2 {[%emt 0:07:14]} 23. Bc6 {[%emt 0:02:27]} g6 {[%emt 0:02:00]} 24. Qf3 {[%emt 0:05:51]} Rb8 {[%emt 0:01:41]} 25. Nb5 {[%emt 0:00:23]} Qd8 {[%emt 0:00:15]} 26. Rad1 {[%emt 0:16:54]} Bg5 {[%emt 0:03:24]} 27. Qc3 {[%emt 0:01:54]} f5 {[%emt 0:04:14]} 28. Qxe5 {[%emt 0:05:29]} Rb6 {[%emt 0:00:06]} 29. d6 {[%emt 0:03:27]} Bf6 {[%emt 0:02:54]} 30. Qd5+ {[%emt 0:01:41]} Kh8 {[%emt 0:00:16]} 31. e5 {[%emt 0:05:04]} Rxc6 {[%emt 0:00:09]} 32. Qxc6 {[%emt 0:00:43]} Bxe5+ {[%emt 0:00:35]} 33. Kg1 {[%emt 0:00:37]} Bd7 {[%emt 0:00:52]} 34. Qxc5 {[%emt 0:01:16]} Bxb2 {[%emt 0:00:26]} 35. Nd4 {[%emt 0:03:10]} Qh4 {[%emt 0:00:24]} 36. Rd2 {[%emt 0:02:02]} Rb8 {[%emt 0:01:29]} 37. Rxb2 {[%emt 0:03:55]} Rxb2 {[%emt 0:00:37]} 38. Qe5+ {[%emt 0:00:03]} Kg8 {[%emt 0:01:26]} 39. Nxf5 {[%emt 0:00:15]} Rxg2+ {[%emt 0:00:56]} 40. Kxg2 {[%emt 0:00:08]} gxf5 {[%emt 0:00:08]} 41. Kh2 {[%emt 0:01:06]} Kf7 {[%emt 0:00:54]} 42. Rg1 {[%emt 0:04:55]} Qf6 {[%emt 0:02:18]} 43. Re1 {[%emt 0:00:27]} Bxa4 {[%emt 0:02:47]} 44. Qe7+ {[%emt 0:00:21]} Qxe7 {[%emt 0:00:07]} 45. Rxe7+ {[%emt 0:00:02]} Kf8 {[%emt 0:00:29]} 46. Ra7 {[%emt 0:00:41]} Ke8 {[%emt 0:01:21]} 47. Rxa5 {[%emt 0:00:06]} Bc2 {[%emt 0:00:39]} 48. Ra7 {[%emt 0:00:37]} f4 {[%emt 0:00:20]} 49. Kg2 {[%emt 0:00:08]} Be4+ {[%emt 0:00:13]} 50. Kf2 {[%emt 0:00:08]} Kf8 {[%emt 0:00:51]} 51. Ra4 {[%emt 0:00:17]} Ke8 {[%emt 0:01:10]} 52. Ra7 {[%emt 0:07:02]} Bf5 {[%emt 0:39:30]} 53. h4 {[%emt 0:00:30]} 1-0

[Event "Suryabinayak Municipality Open B 2024"]
[Site "Bhaktapur"]
[Date "2024.12.05"]
[Round "5.1"]
[White "Jaiswal, Rupesh"]
[Black "Silwal, Purushottam"]
[Result "1/2-1/2"]
[ECO "B90"]
[WhiteElo "2062"]
[BlackElo "2058"]
[Annotator "RC"]
[PlyCount "34"]
[EventDate "2024.12.02"]
[EventCountry "NEP"]
[SourceTitle "playchess.com"]
[Source "ChessBase"]
[SourceQuality "1"]
[TimeControl "5400+30"]

1. e4 {[%emt 0:00:03]} c5 {[%emt 0:04:03]} 2. Nf3 {[%emt 0:00:07]} d6 {[%emt 0:00:01]} 3. d4 {[%emt 0:00:07]} cxd4 {[%emt 0:00:05]} 4. Nxd4 {[%emt 0:00:03]} Nf6 {[%emt 0:00:02]} 5. Nc3 {[%emt 0:00:13]} a6 {[%emt 0:00:59]} 6. h3 {[%emt 0:00:06]} e5 {[%emt 0:00:07]} 7. Nf3 {[%emt 0:00:17]} Be7 {[%emt 0:01:08]} 8. g4 {[%emt 0:00:23]} h6 {[%emt 0:00:49]} 9. Rg1 {[%emt 0:00:01]} b5 10. g5 hxg5 {[%emt 0:04:41]} 11. Nxg5 {[%emt 0:00:31]} Bb7 {[%emt 0:00:31]} 12. Be3 {[%emt 0:02:19]} Qc7 {[%emt 0:00:48]} 13. Qd2 {[%emt 0:10:58]} Nbd7 {[%emt 0:00:14]} 14. O-O-O {[%emt 0:01:27]} Rc8 {[%emt 0:00:12]} 15. Kb1 {[%emt 0:01:11]} Nb6 {[%emt 0:04:50]} 16. Bxb6 {[%emt 0:10:49]} Qxb6 {[%emt 0:00:14]} 17. f4 {[%emt 1:10:25]} Bf8 {[%emt 1:20:16]} 1/2-1/2

[Event "Suryabinayak Municipality Open B 2024"]
[Site "Bhaktapur"]
[Date "2024.12.05"]
[Round "5.2"]
[White "Rajbhandari, Rijendra"]
[Black "Phuyal, Aashish"]
[Result "0-1"]
[ECO "E11"]
[WhiteElo "1999"]
[BlackElo "1907"]
[Annotator "RC"]
[PlyCount "70"]
[EventDate "2024.12.02"]
[EventCountry "NEP"]
[SourceTitle "playchess.com"]
[Source "ChessBase"]
[SourceQuality "1"]
[TimeControl "5400+30"]

1. d4 {[%emt 1:31:00]} Nf6 {[%emt 0:13:14]} 2. c4 {[%emt 0:00:00]} e6 {[%emt 0:00:05]} 3. g3 {[%emt 0:00:00]} d5 {[%emt 0:01:15]} 4. Nf3 {[%emt 0:00:00]} Bb4+ {[%emt 0:00:19]} 5. Bd2 {[%emt 0:00:00]} a5 {[%emt 0:00:09]} 6. Bg2 {[%emt 0:00:00]} O-O {[%emt 0:00:23]} 7. O-O {[%emt 0:00:00]} dxc4 {[%emt 0:00:41]} 8. Qc2 {[%emt 0:00:00]} Bxd2 {[%emt 0:00:25]} 9. Nbxd2 {[%emt 0:00:00]} b5 {[%emt 0:00:16]} 10. a4 {[%emt 0:00:00]} c6 {[%emt 0:00:16]} 11. e4 {[%emt 0:00:00]} Na6 {[%emt 0:01:44]} 12. Rfd1 {[%emt 0:00:00]} Nb4 {[%emt 0:03:40]} 13. Qb1 {[%emt 0:00:00]} h6 {[%emt 0:12:58]} 14. h4 {[%emt 0:00:00]} Ng4 {[%emt 0:19:12]} 15. Nf1 {[%emt 0:00:00]} Nd3 {[%emt 0:07:28]} 16. Rd2 {[%emt 0:00:00]} e5 {[%emt 0:00:48]} 17. dxe5 {[%emt 0:00:00]} Qb6 {[%emt 0:01:15]} 18. Qc2 {[%emt 0:00:00]} Be6 {[%emt 0:01:02]} 19. N1h2 {[%emt 0:00:00]} Ngxe5 {[%emt 0:07:03]} 20. Nxe5 {[%emt 0:00:00]} Nxe5 {[%emt 0:00:03]} 21. Nf3 {[%emt 0:00:00]} Nxf3+ {[%emt 0:00:46]} 22. Bxf3 {[%emt 0:00:00]} Qc5 {[%emt 0:00:51]} 23. Kg2 {[%emt 0:00:00]} Qb4 {[%emt 0:04:52]} 24. e5 {[%emt 0:00:00]} Rac8 {[%emt 0:01:44]} 25. Rd6 {[%emt 0:00:00]} Qc5 {[%emt 0:01:42]} 26. axb5 {[%emt 0:02:17]} cxb5 {[%emt 0:00:14]} 27. Rxa5 {[%emt 0:00:05]} Qxe5 {[%emt 0:00:24]} 28. Rb6 {[%emt 0:00:07]} Rc5 {[%emt 0:00:22]} 29. Qd2 {[%emt 0:01:53]} Bd5 {[%emt 0:03:30]} 30. Bxd5 {[%emt 0:03:54]} Rxd5 {[%emt 0:00:02]} 31. Qc3 {[%emt 0:00:07]} Qc7 {[%emt 0:00:48]} 32. Rba6 {[%emt 0:02:13]} Rd3 {[%emt 0:00:51]} 33. Qe1 {[%emt 0:01:25]} Qb7+ {[%emt 0:01:08]} 34. Kh2 {[%emt 0:00:22]} Rfd8 {[%emt 0:00:19]} 35. Ra7 {[%emt 0:00:26]} Qd5 {[%emt 0:00:28]} 0-1

[Event "Suryabinayak Municipality Open B 2024"]
[Site "Bhaktapur"]
[Date "2024.12.05"]
[Round "5.3"]
[White "Kachhepati, Rajesh"]
[Black "Lama, Milan"]
[Result "0-1"]
[ECO "B20"]
[WhiteElo "1831"]
[BlackElo "1997"]
[Annotator "RC"]
[PlyCount "104"]
[EventDate "2024.12.02"]
[EventCountry "NEP"]
[SourceTitle "playchess.com"]
[Source "ChessBase"]
[SourceQuality "1"]
[TimeControl "5400+30"]

1. e4 {[%emt 0:00:29]} c5 {[%emt 0:05:06]} 2. c4 {[%emt 0:04:21]} Nc6 {[%emt 0:00:16]} 3. Nf3 {[%emt 0:00:48]} g6 {[%emt 0:00:06]} 4. Nc3 {[%emt 0:00:57]} Bg7 5. Be2 d6 {[%emt 0:00:47]} 6. d3 {[%emt 0:02:11]} e6 {[%emt 0:00:30]} 7. Bd2 {[%emt 0:00:30]} Nge7 {[%emt 0:01:58]} 8. Rb1 {[%emt 0:02:20]} O-O {[%emt 0:01:49]} 9. O-O {[%emt 0:00:31]} d5 {[%emt 0:01:12]} 10. Qc1 {[%emt 1:23:23]} dxc4 {[%emt 0:05:00]} 11. dxc4 {[%emt 0:00:00]} Nd4 {[%emt 0:02:00]} 12. Bd1 {[%emt 0:00:00]} Nec6 {[%emt 0:00:42]} 13. Bh6 {[%emt 0:00:00]} e5 {[%emt 0:11:15]} 14. Bxg7 {[%emt 0:00:00]} Kxg7 {[%emt 0:00:05]} 15. h3 {[%emt 0:00:00]} Be6 {[%emt 0:02:27]} 16. Nd5 {[%emt 0:00:00]} Nxf3+ {[%emt 0:00:41]} 17. Bxf3 {[%emt 0:00:00]} Nd4 {[%emt 0:00:10]} 18. Bd1 {[%emt 0:00:00]} f5 {[%emt 0:04:52]} 19. exf5 {[%emt 0:00:00]} Bxd5 {[%emt 0:09:45]} 20. cxd5 {[%emt 0:00:00]} Qxd5 {[%emt 0:00:09]} 21. fxg6 {[%emt 0:00:00]} hxg6 {[%emt 0:00:20]} 22. b3 {[%emt 0:00:00]} b6 {[%emt 0:03:40]} 23. Bg4 {[%emt 0:00:00]} Rf4 {[%emt 0:02:15]} 24. Qe3 {[%emt 0:00:00]} Re4 {[%emt 0:08:14]} 25. Qg5 {[%emt 0:00:00]} Qd8 {[%emt 0:02:36]} 26. Qxd8 {[%emt 0:00:00]} Rxd8 {[%emt 0:00:07]} 27. Rfe1 {[%emt 0:00:00]} Rxe1+ {[%emt 0:00:19]} 28. Rxe1 {[%emt 0:00:00]} Kf6 {[%emt 0:00:30]} 29. h4 {[%emt 0:00:00]} Rh8 {[%emt 0:00:42]} 30. g3 {[%emt 0:00:00]} Rh7 {[%emt 0:01:20]} 31. Kg2 {[%emt 0:00:00]} b5 {[%emt 0:00:31]} 32. Rc1 {[%emt 0:00:00]} Rc7 {[%emt 0:00:11]} 33. Kf1 {[%emt 0:00:00]} c4 {[%emt 0:04:22]} 34. bxc4 {[%emt 0:00:00]} bxc4 {[%emt 0:04:34]} 35. Be2 {[%emt 0:00:00]} c3 {[%emt 0:00:03]} 36. Bd3 {[%emt 0:00:00]} Rc8 {[%emt 0:01:26]} 37. Ke1 {[%emt 0:00:00]} g5 {[%emt 0:01:40]} 38. h5 {[%emt 0:00:00]} g4 {[%emt 0:00:59]} 39. h6 {[%emt 0:00:00]} e4 {[%emt 0:03:32]} 40. Be2 {[%emt 0:00:00]} Nf3+ {[%emt 0:08:43]} 41. Bxf3 {[%emt 0:00:00]} gxf3 {[%emt 0:03:45]} 42. Kd1 {[%emt 0:00:00]} c2+ {[%emt 0:00:54]} 43. Kd2 {[%emt 0:00:00]} Kg6 {[%emt 0:00:46]} 44. Ke3 {[%emt 0:00:00]} Rc4 {[%emt 0:00:11]} 45. Kd2 {[%emt 0:00:00]} Kxh6 {[%emt 0:00:19]} 46. Rh1+ {[%emt 0:00:00]} Kg5 {[%emt 0:00:11]} 47. Kc1 {[%emt 0:00:00]} a6 {[%emt 0:05:02]} 48. Re1 {[%emt 0:00:00]} Kg4 {[%emt 0:00:42]} 49. Rh1 {[%emt 0:00:00]} e3 {[%emt 0:00:21]} 50. Rh4+ {[%emt 0:00:00]} Kg5 {[%emt 0:00:17]} 51. Rh2 {[%emt 0:00:00]} exf2 {[%emt 0:00:20]} 52. Rxf2 {[%emt 0:00:00]} Kg4 {[%emt 0:00:00]} 0-1

[Event "Suryabinayak Municipality Open B 2024"]
[Site "Bhaktapur"]
[Date "2024.12.05"]
[Round "5.4"]
[White "Kusatha, Niken"]
[Black "Chaudhary, Sushil"]
[Result "1-0"]
[ECO "B22"]
[WhiteElo "1964"]
[BlackElo "1900"]
[Annotator "RC"]
[PlyCount "99"]
[EventDate "2024.12.02"]
[EventCountry "NEP"]
[SourceTitle "playchess.com"]
[Source "ChessBase"]
[SourceQuality "1"]
[TimeControl "5400+30"]

1. e4 {[%emt 1:31:00]} c5 {[%emt 0:07:59]} 2. Nf3 {[%emt 0:00:00]} e6 {[%emt 0:00:05]} 3. c3 {[%emt 0:00:00]} d5 {[%emt 0:00:37]} 4. exd5 {[%emt 0:00:00]} exd5 {[%emt 0:00:04]} 5. d4 {[%emt 0:00:00]} Nf6 {[%emt 0:00:17]} 6. Bb5+ {[%emt 0:00:00]} Bd7 7. Bxd7+ {[%emt 0:00:00]} Nbxd7 {[%emt 0:01:25]} 8. O-O {[%emt 0:00:00]} Be7 {[%emt 0:00:09]} 9. dxc5 {[%emt 0:00:00]} Nxc5 {[%emt 0:00:26]} 10. Be3 {[%emt 0:00:00]} O-O {[%emt 0:01:04]} 11. Nbd2 {[%emt 0:00:00]} b6 {[%emt 0:01:12]} 12. h3 {[%emt 0:00:00]} Qc7 {[%emt 0:00:29]} 13. Nd4 {[%emt 0:00:00]} Rad8 {[%emt 0:00:53]} 14. Nf5 {[%emt 0:00:00]} Ne6 {[%emt 0:01:04]} 15. Nxe7+ {[%emt 0:00:00]} Qxe7 {[%emt 0:00:06]} 16. Nf3 {[%emt 0:00:00]} Ne4 {[%emt 0:00:27]} 17. Nd4 {[%emt 0:00:00]} Nxd4 {[%emt 0:01:16]} 18. Bxd4 {[%emt 0:00:00]} Qh4 {[%emt 0:01:15]} 19. Qg4 {[%emt 0:00:00]} Qxg4 {[%emt 0:03:59]} 20. hxg4 {[%emt 0:00:00]} Rfe8 {[%emt 0:00:18]} 21. Rfd1 {[%emt 0:00:00]} f6 {[%emt 0:02:06]} 22. f3 {[%emt 0:00:00]} Nc5 {[%emt 0:01:19]} 23. Rd2 {[%emt 0:00:00]} Re7 {[%emt 0:01:48]} 24. Rad1 {[%emt 0:00:00]} Red7 {[%emt 0:00:05]} 25. Kf2 {[%emt 0:00:00]} Kf7 {[%emt 0:00:08]} 26. g3 {[%emt 0:00:00]} Nb7 {[%emt 0:02:39]} 27. Be3 {[%emt 0:00:00]} Na5 {[%emt 0:02:27]} 28. Rd3 {[%emt 0:00:00]} Nc6 {[%emt 0:00:59]} 29. f4 {[%emt 0:00:00]} Rd6 {[%emt 0:03:18]} 30. b3 {[%emt 0:00:00]} R6d7 {[%emt 0:03:32]} 31. Bc1 {[%emt 0:00:00]} b5 {[%emt 0:00:51]} 32. Ba3 {[%emt 0:00:00]} g5 {[%emt 0:02:51]} 33. Bc5 {[%emt 0:00:00]} Kg6 {[%emt 0:00:34]} 34. Re1 {[%emt 0:00:00]} Rc8 {[%emt 0:01:46]} 35. b4 {[%emt 0:00:00]} h5 {[%emt 0:01:11]} 36. gxh5+ {[%emt 0:00:00]} Kf5 {[%emt 0:01:33]} 37. Kg2 {[%emt 0:00:00]} gxf4 {[%emt 0:03:15]} 38. Rf3 {[%emt 0:00:00]} Ne5 {[%emt 0:02:37]} 39. Rxf4+ {[%emt 0:00:00]} Ke6 {[%emt 0:01:39]} 40. Bd4 {[%emt 0:00:00]} Rh7 {[%emt 0:01:07]} 41. g4 {[%emt 0:00:00]} Rg8 {[%emt 0:00:18]} 42. Kh3 {[%emt 0:00:00]} Rg5 {[%emt 0:00:21]} 43. Ref1 {[%emt 0:00:00]} Rf7 {[%emt 0:02:29]} 44. Kh4 {[%emt 0:00:00]} Rg8 {[%emt 0:01:29]} 45. Bxe5 {[%emt 0:00:00]} Kxe5 {[%emt 0:00:07]} 46. Rf5+ {[%emt 0:00:00]} Ke6 {[%emt 0:00:15]} 47. Re1+ {[%emt 0:00:00]} Kd6 {[%emt 0:00:30]} 48. Rd1 {[%emt 0:00:00]} Rc8 {[%emt 0:00:16]} 49. Rdxd5+ {[%emt 0:00:00]} Ke6 {[%emt 0:00:15]} 50. Rc5 {[%emt 0:00:00]} 1-0

[Event "Suryabinayak Municipality Open B 2024"]
[Site "Bhaktapur"]
[Date "2024.12.05"]
[Round "6.1"]
[White "Phuyal, Aashish"]
[Black "Kusatha, Niken"]
[Result "1/2-1/2"]
[ECO "C47"]
[WhiteElo "1907"]
[BlackElo "1964"]
[Annotator "RC"]
[PlyCount "23"]
[EventDate "2024.12.02"]
[EventCountry "NEP"]
[SourceTitle "playchess.com"]
[Source "ChessBase"]
[SourceQuality "1"]
[TimeControl "5400+30"]

1. e4 {[%emt 0:02:05]} e5 {[%emt 0:00:57]} 2. Nf3 {[%emt 0:00:07]} Nc6 {[%emt 0:00:06]} 3. Nc3 {[%emt 0:00:02]} Nf6 {[%emt 0:00:06]} 4. d4 {[%emt 0:00:02]} exd4 {[%emt 0:00:28]} 5. Nxd4 {[%emt 0:00:02]} Bb4 {[%emt 0:00:09]} 6. Nxc6 {[%emt 0:00:09]} bxc6 {[%emt 0:00:28]} 7. Bd3 {[%emt 0:00:02]} d5 {[%emt 0:00:16]} 8. exd5 {[%emt 0:00:09]} cxd5 {[%emt 0:00:02]} 9. Bb5+ {[%emt 0:00:02]} Bd7 {[%emt 0:00:27]} 10. Qe2+ {[%emt 0:00:05]} Qe7 {[%emt 0:00:04]} 11. Bxd7+ {[%emt 0:00:03]} Kxd7 {[%emt 0:00:17]} 12. Qxe7+ {[%emt 0:00:05]} 1/2-1/2

[Event "Suryabinayak Municipality Open B 2024"]
[Site "Bhaktapur"]
[Date "2024.12.05"]
[Round "6.3"]
[White "Silwal, Purushottam"]
[Black "Maharjan, Suroj"]
[Result "1-0"]
[ECO "C62"]
[WhiteElo "2058"]
[BlackElo "1944"]
[Annotator "COMBH"]
[PlyCount "103"]
[EventDate "2024.12.02"]
[EventCountry "NEP"]
[SourceTitle "playchess.com"]
[Source "ChessBase"]
[SourceQuality "1"]
[TimeControl "5400+30"]

1. e4 {[%emt 0:00:39]} Nc6 {[%emt 0:00:55]} 2. Nf3 {[%emt 0:01:50]} e5 {[%emt 0:01:47]} 3. Bb5 {[%emt 0:01:04]} Nf6 {[%emt 0:02:33]} 4. O-O {[%emt 0:00:10]} d6 {[%emt 0:00:35]} 5. d4 {[%emt 0:03:19]} exd4 {[%emt 0:02:24]} 6. Nxd4 {[%emt 0:05:19]} Bd7 {[%emt 0:00:15]} 7. Bxc6 {[%emt 0:04:19]} bxc6 {[%emt 0:00:37]} 8. Qf3 {[%emt 0:00:49]} Ng4 {[%emt 0:08:14]} 9. Nc3 {[%emt 0:01:41]} Ne5 {[%emt 0:02:28]} 10. Qg3 {[%emt 0:00:36]} h5 {[%emt 0:01:38]} 11. f4 {[%emt 0:05:28]} h4 {[%emt 0:01:25]} 12. Qe1 {[%emt 0:00:13]} Ng6 {[%emt 0:06:22]} 13. Kh1 {[%emt 0:17:55]} h3 {[%emt 0:04:37]} 14. g3 {[%emt 0:01:22]} Be7 {[%emt 0:02:20]} 15. Nf3 {[%emt 0:11:29]} Bg4 {[%emt 0:06:17]} 16. Nd1 {[%emt 0:07:14]} O-O {[%emt 0:02:54]} 17. Ne3 {[%emt 0:01:09]} Bc8 {[%emt 0:00:59]} 18. f5 {[%emt 0:04:25]} Ne5 {[%emt 0:00:59]} 19. Nxe5 {[%emt 0:00:16]} dxe5 {[%emt 0:00:04]} 20. Ng4 {[%emt 0:00:41]} Ba6 {[%emt 0:05:13]} 21. Rg1 {[%emt 0:03:30]} Rb8 {[%emt 0:06:04]} 22. Nxe5 {[%emt 0:05:33]} Bc5 {[%emt 0:06:17]} 23. Be3 {[%emt 0:02:23]} Qe7 {[%emt 0:05:37]} 24. Bxc5 {[%emt 0:00:36]} Qxc5 {[%emt 0:00:11]} 25. Nd7 {[%emt 0:04:18]} Qxc2 {[%emt 0:00:05]} 26. Rc1 {[%emt 0:00:25]} Qd3 {[%emt 0:00:19]} 27. Ne5 {[%emt 0:00:26]} Qd6 {[%emt 0:04:19]} 28. Qc3 {[%emt 0:03:31]} Rfe8 {[%emt 0:04:03]} 29. Nxc6 {[%emt 0:02:32]} Rb6 {[%emt 0:11:26]} 30. Rgd1 {[%emt 0:02:08]} Rxc6 {[%emt 0:03:25]} 31. Qxc6 {[%emt 0:00:24]} Qxc6 {[%emt 0:00:28]} 32. Rxc6 {[%emt 0:00:08]} Bb7 {[%emt 0:00:22]} 33. Rxc7 {[%emt 0:00:29]} Bxe4+ {[%emt 0:00:05]} 34. Kg1 {[%emt 0:00:04]} Bxf5 {[%emt 0:01:52]} 35. Kf2 {[%emt 0:00:11]} Bg4 {[%emt 0:00:08]} 36. Rd2 {[%emt 0:00:10]} Re6 {[%emt 0:01:14]} 37. Rxa7 {[%emt 0:00:47]} Rf6+ {[%emt 0:00:02]} 38. Ke3 {[%emt 0:00:18]} g5 {[%emt 0:01:14]} 39. Ra5 {[%emt 0:00:35]} Re6+ {[%emt 0:00:14]} 40. Kd4 {[%emt 0:00:11]} Rg6 {[%emt 0:01:33]} 41. b4 {[%emt 0:00:09]} Kg7 {[%emt 0:00:12]} 42. b5 {[%emt 0:00:07]} Rd6+ {[%emt 0:01:05]} 43. Kc3 {[%emt 0:00:09]} Re6 {[%emt 0:00:47]} 44. b6 {[%emt 0:01:09]} Rc6+ {[%emt 0:00:47]} 45. Kd4 {[%emt 0:00:08]} Kg6 {[%emt 0:03:19]} 46. b7 {[%emt 0:00:37]} Rd6+ {[%emt 0:00:22]} 47. Ke3 {[%emt 0:00:20]} Re6+ {[%emt 0:00:20]} 48. Kf2 {[%emt 0:00:06]} Rf6+ {[%emt 0:00:32]} 49. Kg1 {[%emt 0:00:05]} Rb6 {[%emt 0:00:29]} 50. Ra6 {[%emt 0:00:17]} Rxa6 {[%emt 0:00:02]} 51. b8=Q {[%emt 0:00:08]} Re6 {[%emt 0:00:27]} 52. Rd6 {[%emt 0:00:04]} 1-0

[Event "Suryabinayak Municipality Open B 2024"]
[Site "Bhaktapur"]
[Date "2024.12.05"]
[Round "6.4"]
[White "Rajbhandari, Rijendra"]
[Black "Tandukar, Nabin"]
[Result "1-0"]
[ECO "A52"]
[WhiteElo "1999"]
[BlackElo "1900"]
[Annotator "RC"]
[PlyCount "80"]
[EventDate "2024.12.02"]
[EventCountry "NEP"]
[SourceTitle "playchess.com"]
[Source "ChessBase"]
[SourceQuality "1"]
[TimeControl "5400+30"]

1. d4 {[%emt 0:02:42]} Nf6 {[%emt 0:03:24]} 2. c4 {[%emt 0:00:05]} e5 {[%emt 0:01:18]} 3. dxe5 {[%emt 0:00:34]} Ng4 {[%emt 0:00:10]} 4. Nf3 {[%emt 0:01:23]} Nc6 {[%emt 0:00:06]} 5. Bf4 {[%emt 0:01:59]} Qe7 {[%emt 0:01:09]} 6. Nc3 {[%emt 0:04:34]} Qc5 {[%emt 0:01:45]} 7. e3 {[%emt 0:05:36]} Ncxe5 {[%emt 0:00:43]} 8. Nxe5 {[%emt 0:00:05]} Nxe5 {[%emt 0:00:12]} 9. Qd5 {[%emt 0:05:11]} f6 {[%emt 0:00:30]} 10. Be2 {[%emt 0:05:37]} c6 {[%emt 0:00:38]} 11. Qxc5 {[%emt 0:01:11]} Bxc5 {[%emt 0:00:20]} 12. O-O {[%emt 0:00:02]} O-O {[%emt 0:00:22]} 13. Rfd1 {[%emt 0:00:07]} Re8 {[%emt 0:00:21]} 14. Ne4 {[%emt 0:03:07]} Bf8 {[%emt 0:00:29]} 15. Nd6 {[%emt 0:00:11]} Bxd6 {[%emt 0:01:04]} 16. Rxd6 {[%emt 0:00:05]} Kf8 {[%emt 0:00:41]} 17. Rad1 {[%emt 0:01:30]} a5 {[%emt 0:00:48]} 18. b3 {[%emt 0:01:59]} b6 {[%emt 0:01:02]} 19. a4 {[%emt 0:01:39]} Re7 {[%emt 0:01:13]} 20. R1d2 {[%emt 0:03:47]} Rb8 {[%emt 0:00:27]} 21. Rd1 {[%emt 0:08:03]} Ke8 {[%emt 0:08:21]} 22. g4 {[%emt 0:02:28]} g5 {[%emt 0:01:26]} 23. Bg3 {[%emt 0:01:10]} Kf7 {[%emt 0:00:20]} 24. f4 {[%emt 0:01:16]} gxf4 {[%emt 0:00:08]} 25. exf4 {[%emt 0:00:28]} Ng6 {[%emt 0:00:04]} 26. Kf2 {[%emt 0:02:01]} Kg7 {[%emt 0:01:53]} 27. h4 {[%emt 0:00:47]} Nh8 {[%emt 0:02:32]} 28. f5 {[%emt 0:01:39]} Nf7 {[%emt 0:04:24]} 29. Rxf6 {[%emt 0:06:05]} Kxf6 {[%emt 0:00:05]} 30. Bxb8 {[%emt 0:00:06]} Ba6 {[%emt 0:01:51]} 31. Bc7 {[%emt 0:02:29]} d5 {[%emt 0:02:32]} 32. Bxb6 {[%emt 0:00:10]} Nd6 {[%emt 0:01:42]} 33. Bd8 {[%emt 0:00:21]} Ne4+ {[%emt 0:00:45]} 34. Ke1 {[%emt 0:02:06]} Nc3 {[%emt 0:00:11]} 35. g5+ {[%emt 0:00:22]} Kf7 {[%emt 0:00:57]} 36. g6+ {[%emt 0:00:07]} hxg6 {[%emt 0:00:08]} 37. fxg6+ {[%emt 0:00:06]} Ke8 {[%emt 0:00:13]} 38. Bxe7 {[%emt 0:00:13]} Kxe7 {[%emt 0:00:21]} 39. Rd4 {[%emt 0:01:04]} Kf6 {[%emt 0:00:29]} 40. Rg4 {[%emt 0:00:40]} Bc8 {[%emt 1:05:26]} 1-0

[Event "Suryabinayak Municipality Open B 2024"]
[Site "Bhaktapur"]
[Date "2024.12.06"]
[Round "7.1"]
[White "Phuyal, Aashish"]
[Black "Silwal, Purushottam"]
[Result "1/2-1/2"]
[ECO "B90"]
[WhiteElo "1907"]
[BlackElo "2058"]
[Annotator "RC"]
[PlyCount "31"]
[EventDate "2024.12.02"]
[EventCountry "NEP"]
[SourceTitle "playchess.com"]
[Source "ChessBase"]
[SourceQuality "1"]
[TimeControl "5400+30"]

1. e4 {[%emt 0:02:18]} c5 {[%emt 0:00:09]} 2. Nf3 {[%emt 0:00:19]} d6 {[%emt 0:00:06]} 3. d4 {[%emt 0:00:03]} cxd4 {[%emt 0:00:05]} 4. Nxd4 {[%emt 0:00:02]} Nf6 {[%emt 0:00:08]} 5. Nc3 {[%emt 0:00:01]} a6 {[%emt 0:00:07]} 6. Be3 {[%emt 0:00:04]} e5 {[%emt 0:00:09]} 7. Nb3 {[%emt 0:00:03]} Be7 {[%emt 0:00:15]} 8. f3 {[%emt 0:00:04]} Be6 {[%emt 0:00:07]} 9. Qd2 {[%emt 0:00:03]} h5 {[%emt 0:00:11]} 10. O-O-O {[%emt 0:00:05]} Nbd7 {[%emt 0:00:05]} 11. Kb1 {[%emt 0:00:04]} Rc8 {[%emt 0:00:32]} 12. g3 {[%emt 0:00:11]} Qc7 {[%emt 0:09:18]} 13. Nd5 {[%emt 0:01:14]} Nxd5 {[%emt 0:01:27]} 14. exd5 {[%emt 0:00:03]} Bf5 {[%emt 0:00:11]} 15. Bd3 {[%emt 0:00:05]} Bxd3 {[%emt 0:00:16]} 16. Qxd3 {[%emt 0:00:02]} 1/2-1/2